fUSD/lending_fUSD_20240618
["ID","MTS","AMOUNT","RATE_DAILY","PERIOD"]
[329816369,1718694652081,-520.51294073,0.00021917,2]
[329816370,1718694652090,-500.0,0.00021917,2]
[329816371,1718694652099,-561.38,0.00021917,2]
[329816372,1718694652109,-500.0,0.00021917,2]
[329816373,1718694652118,-500.0,0.00021917,2]
[329816374,1718694652128,-735.55,0.00021917,2]
[329816375,1718694652138,-3531.09,0.00021917,2]
[329816376,1718694652147,-500.0,0.00021917,2]
[329816377,1718694652157,-680.45,0.00021917,2]
[329816378,1718694652166,-500.0,0.00021917,2]
[329816379,1718694652175,-500.0,0.00021917,2]
[329816380,1718694652184,-1586.28,0.00021917,2]
[329816381,1718694652193,-2780.88,0.00021917,2]
[329816382,1718694652204,-972.76,0.00021917,2]
[329816383,1718694652633,-500.0,0.00021917,2]
[329816384,1718694652669,-5941.55,0.00021917,2]
[329816385,1718694652687,-1446.33,0.00021917,2]
[329816386,1718694652697,-500.0,0.00021917,2]
[329816387,1718694652708,-1023.0,0.00021917,2]
[329816388,1718694652718,-500.0,0.00021917,2]
[329816389,1718694652727,-500.0,0.00021917,2]
[329816390,1718694652737,-4913.27,0.00021917,2]
[329816391,1718694652747,-509.38586646,0.00021917,2]
[329816392,1718694652758,-777.77,0.00021917,2]
[329816393,1718694652767,-500.0,0.00021917,2]
[329816394,1718694652777,-500.0,0.00021917,2]
[329816395,1718694652787,-500.0,0.00021917,2]
[329816396,1718694652797,-702.69,0.00021917,2]
[329816397,1718694652806,-756.13,0.00021917,2]
[329816398,1718694652815,-1618.1,0.00021917,2]
[329816399,1718694652825,-500.0,0.00021917,2]
[329816400,1718694652835,-594.39,0.00021917,2]
[329816401,1718694652844,-506.55513885,0.00021917,2]
[329816402,1718694652854,-500.0,0.00021917,2]
[329816403,1718694652864,-1815.94,0.00021917,2]
[329816404,1718694652873,-620.1,0.00021917,2]
[329816405,1718694652882,-2211.5,0.00021917,2]
[329816406,1718694652892,-515.91,0.00021917,2]
[329816407,1718694652901,-4188.27,0.00021917,2]
[329816408,1718694652911,-870.75,0.00021917,2]
[329816409,1718694652920,-500.0,0.00021917,2]
[329816410,1718694652929,-500.0,0.00021917,2]
[329816411,1718694652939,-489.04013966,0.00021917,2]
[329816412,1718694652948,-560.33,0.00021917,2]
[329816413,1718694652961,-500.0,0.00021917,2]
[329816414,1718694652970,-847.32,0.00021917,2]
[329816415,1718694652979,-579.89,0.00021917,2]
[329816416,1718694652989,-500.0,0.00021917,2]
[329816417,1718694652999,-500.0,0.00021917,2]
[329816418,1718694653008,-500.0,0.00021917,2]
[329816419,1718694653017,-513.77929842,0.00021917,2]
[329816420,1718694653027,-604.94,0.00021917,2]
[329816421,1718694653037,-1137.19,0.00021917,2]
[329816422,1718694653046,-1683.78,0.00021917,2]
[329816423,1718694653056,-3538.36,0.00021917,2]
[329816424,1718694653065,-3837.06,0.00021917,2]
[329816425,1718694653075,-622.83,0.00021917,2]
[329816426,1718694653084,-500.0,0.00021917,2]
[329816427,1718694653094,-500.0,0.00021917,2]
[329816428,1718694653103,-500.0,0.00021917,2]
[329816429,1718694653112,-551.32,0.00021917,2]
[329816430,1718694653122,-2054.2,0.00021917,2]
[329816431,1718694653132,-704.93,0.00021917,2]
[329816432,1718694653141,-8449.82,0.00021917,2]
[329816433,1718694653152,-500.0,0.00021917,2]
[329816434,1718694653162,-5053.83,0.00021917,2]
[329816435,1718694653171,-4405.64,0.00021917,2]
[329816436,1718694653180,-500.0,0.00021917,2]
[329816437,1718694653189,-887.82,0.00021917,2]
[329816438,1718694653199,-5301.09,0.00021917,2]
[329816439,1718694653212,-500.0,0.00021917,2]
[329816440,1718694653221,-1925.16,0.00021917,2]
[329816441,1718694653230,-2247.44,0.00021917,2]
[329816442,1718694653239,-1341.08,0.00021917,2]
[329816443,1718694653248,-500.0,0.00021917,2]
[329816444,1718694653258,-500.0,0.00021917,2]
[329816445,1718694653268,-1177.88,0.00021917,2]
[329816446,1718694653277,-2853.09,0.00021917,2]
[329816447,1718694653286,-500.0,0.00021917,2]
[329816448,1718694653296,-500.0,0.00021917,2]
[329816449,1718694653305,-3565.73,0.00021917,2]
[329816450,1718694653315,-603.85,0.00021917,2]
[329816451,1718694653329,-563.02,0.00021917,2]
[329816452,1718694653339,-500.0,0.00021917,2]
[329816453,1718694653348,-852.67,0.00021917,2]
[329816454,1718694653358,-945.6,0.00021917,2]
[329816455,1718694653367,-192.850312,0.00021917,2]
[329816456,1718694653377,-18687.1,0.00021917,2]
[329816457,1718694653386,-11593.14,0.00021917,2]
[329816458,1718694653398,-500.0,0.00021917,2]
[329816459,1718694653407,-500.0,0.00021917,2]
[329816460,1718694653416,-1050.13,0.00021917,2]
[329816461,1718694653426,-500.0,0.00021917,2]
[329816462,1718694653435,-500.0,0.00021917,2]
[329816463,1718694653445,-1706.78,0.00021917,2]
[329816464,1718694653455,-510.76454081,0.00021917,2]
[329816465,1718694653464,-2343.16,0.00021917,2]
[329816466,1718694653474,-737.09,0.00021917,2]
[329816467,1718694653483,-500.0,0.00021917,2]
[329816468,1718694653492,-1490.84,0.00021917,2]
[329816469,1718694653501,-741.78,0.00021917,2]
[329816470,1718694653511,-1894.01,0.00021917,2]
[329816471,1718694653520,-2408.96,0.00021917,2]
[329816472,1718694653531,-500.0,0.00021917,2]
[329816473,1718694653540,-500.0,0.00021917,2]
[329816474,1718694653549,-500.0,0.00021917,2]
[329816475,1718694653559,-5399.39,0.00021917,2]
[329816476,1718694653569,-670.02,0.00021917,2]
[329816477,1718694653579,-500.0,0.00021917,2]
[329816478,1718694653588,-500.0,0.00021917,2]
[329816479,1718694653598,-1162.19,0.00021917,2]
[329816480,1718694653607,-500.0,0.00021917,2]
[329816481,1718694653616,-500.0,0.00021917,2]
[329816482,1718694653626,-2861.3,0.00021917,2]
[329816483,1718694653635,-500.0,0.00021917,2]
[329816484,1718694653645,-1314.57,0.00021917,2]
[329816485,1718694653654,-500.0,0.00021917,2]
[329816486,1718694653664,-518.54,0.00021917,2]
[329816487,1718694653674,-5998.59,0.00021917,2]
[329816488,1718694653683,-500.31,0.00021917,2]
[329816489,1718694653692,-500.0,0.00021917,2]
[329816490,1718694653702,-500.0,0.00021917,2]
[329816491,1718694653712,-546.9883321,0.00021917,2]
[329816492,1718694653721,-500.0,0.00021917,2]
[329816493,1718694653731,-1523.83,0.00021917,2]
[329816494,1718694653740,-1119.0,0.00021917,2]
[329816495,1718694653749,-463.12,0.00021917,7]
[329816496,1718694653759,-1071.61,0.00021917,2]
[329816497,1718694653768,-500.0,0.00021917,2]
[329816498,1718694653777,-3334.85,0.00021917,2]
[329816499,1718694653787,-1321.62,0.00021917,2]
[329816500,1718694653796,-2378.63,0.00021917,2]
[329816501,1718694653805,-500.0,0.00021917,2]
[329816502,1718694653814,-500.0,0.00021917,2]
[329816503,1718694653823,-500.0,0.00021917,2]
[329816504,1718694653832,-565.90147235,0.00021917,2]
[329816505,1718694653842,-500.0,0.00021917,2]
[329816506,1718694653852,-1600.62,0.00021917,2]
[329816507,1718694653862,-500.0,0.00021917,2]
[329816508,1718694653871,-500.0,0.00021917,2]
[329816509,1718694653881,-3423.41,0.00021917,2]
[329816510,1718694653891,-2900.85,0.00021917,2]
[329816511,1718694653900,-500.0,0.00021917,2]
[329816512,1718694653910,-2110.01,0.00021917,2]
[329816513,1718694653919,-500.0,0.00021917,2]
[329816514,1718694653929,-1574.09,0.00021917,2]
[329816515,1718694653938,-708.17,0.00021917,2]
[329816516,1718694653949,-500.0,0.00021917,2]
[329816517,1718694653962,-500.0,0.00021917,2]
[329816518,1718694653973,-6182.35,0.00021917,2]
[329816519,1718694653983,-548.89339789,0.00021917,2]
[329816520,1718694653993,-1011.07,0.00021917,2]
[329816521,1718694654002,-500.0,0.00021917,2]
[329816522,1718694654012,-500.0,0.00021917,2]
[329816523,1718694654021,-249.12104157,0.00021917,2]
[329816524,1718694654030,-510.1452981,0.00021917,2]
[329816525,1718694654039,-500.0,0.00021917,2]
[329816526,1718694654049,-717.34,0.00021917,2]
[329816527,1718694654058,-6478.98,0.00021917,2]
[329816528,1718694654067,-2064.64,0.00021917,2]
[329816529,1718694654077,-500.0,0.00021917,2]
[329816530,1718694654086,-1107.75,0.00021917,2]
[329816531,1718694654095,-500.0,0.00021917,2]
[329816532,1718694654105,-5056.08,0.00021917,2]
[329816533,1718694654114,-1573.76,0.00021917,2]
[329816534,1718694654123,-1073.27,0.00021917,2]
[329816535,1718694654132,-525.9,0.00021917,2]
[329816536,1718694654142,-5083.61,0.00021917,2]
[329816537,1718694654151,-500.0,0.00021917,2]
[329816538,1718694654160,-3056.43,0.00021917,2]
[329816539,1718694654169,-500.0,0.00021917,2]
[329816540,1718694654179,-1188.78,0.00021917,2]
[329816541,1718694654188,-500.0,0.00021917,2]
[329816542,1718694654198,-529.81501714,0.00021917,2]
[329816543,1718694654212,-500.0,0.00021917,2]
[329816544,1718694654222,-4034.17,0.00021917,2]
[329816545,1718694654232,-3263.85,0.00021917,2]
[329816546,1718694654241,-279.89650538,0.00021917,2]
[329816547,1718694654251,-787.4,0.00021917,2]
[329816548,1718694654261,-1509.59,0.00021917,2]
[329816549,1718694654271,-504.95,0.00021917,2]
[329816550,1718694654280,-500.0,0.00021917,2]
[329816551,1718694654290,-3316.3,0.00021917,2]
[329816552,1718694654299,-500.0,0.00021917,2]
[329816553,1718694654309,-9417.57,0.00021917,2]
[329816554,1718694654320,-649.9,0.00021917,2]
[329816555,1718694654333,-500.0,0.00021917,2]
[329816556,1718694654342,-2477.59,0.00021917,2]
[329816557,1718694654352,-500.0,0.00021917,2]
[329816558,1718694654363,-500.0,0.00021917,2]
[329816559,1718694654373,-2518.21,0.00021917,2]
[329816560,1718694654383,-500.0,0.00021917,2]
[329816561,1718694654393,-500.0,0.00021917,2]
[329816562,1718694654404,-672.23,0.00021917,2]
[329816563,1718694654414,-500.0,0.00021917,2]
[329816564,1718694654424,-3306.9,0.00021917,2]
[329816565,1718694654433,-567.0,0.00021917,2]
[329816566,1718694654443,-500.0,0.00021917,2]
[329816567,1718694654453,-3323.26,0.00021917,2]
[329816568,1718694654471,-589.07,0.00021917,2]
[329816569,1718694654481,-500.0,0.00021917,2]
[329816570,1718694654492,-4463.7,0.00021917,2]
[329816571,1718694654502,-804.21,0.00021917,2]
[329816572,1718694654512,-901.08,0.00021917,2]
[329816573,1718694654522,-1714.41,0.00021917,2]
[329816574,1718694654532,-699.11,0.00021917,2]
[329816575,1718694654542,-1707.01,0.00021917,2]
[329816576,1718694654552,-657.02,0.00021917,2]
[329816577,1718694654563,-623.62171097,0.00021917,2]
[329816578,1718694654572,-2456.08,0.00021917,2]
[329816579,1718694654582,-500.0,0.00021917,2]
[329816580,1718694654592,-230.09844143,0.00021917,2]
[329816581,1718694654602,-622.67,0.00021917,2]
[329816582,1718694654612,-500.0,0.00021917,2]
[329816583,1718694654621,-1227.96,0.00021917,2]
[329816584,1718694654631,-2272.07,0.00021917,2]
[329816585,1718694654641,-500.0,0.00021917,2]
[329816586,1718694654650,-500.0,0.00021917,2]
[329816587,1718694654660,-8563.03,0.00021917,2]
[329816588,1718694654669,-8734.8,0.00021917,2]
[329816589,1718694654679,-500.0,0.00021917,2]
[329816590,1718694654688,-825.91,0.00021917,2]
[329816591,1718694654697,-500.0,0.00021917,2]
[329816592,1718694654710,-1258.91,0.00021917,2]
[329816593,1718694654719,-1375.28,0.00021917,2]
[329816594,1718694654728,-1247.43,0.00021917,2]
[329816595,1718694654738,-500.0,0.00021917,2]
[329816596,1718694654749,-3608.19,0.00021917,2]
[329816597,1718694654758,-500.0,0.00021917,2]
[329816598,1718694654768,-500.0,0.00021917,2]
[329816599,1718694654777,-2745.57,0.00021917,2]
[329816600,1718694654787,-500.0,0.00021917,2]
[329816601,1718694654796,-2791.61,0.00021917,2]
[329816602,1718694654805,-500.0,0.00021917,2]
[329816603,1718694654814,-1362.01,0.00021917,2]
[329816604,1718694654824,-514.48236021,0.00021917,2]
[329816605,1718694654833,-4035.78,0.00021917,2]
[329816606,1718694654843,-500.0,0.00021917,2]
[329816607,1718694654852,-1090.25,0.00021917,2]
[329816608,1718694654862,-500.0,0.00021917,2]
[329816609,1718694654871,-500.0,0.00021917,2]
[329816610,1718694654881,-500.0,0.00021917,2]
[329816611,1718694654890,-500.0,0.00021917,2]
[329816612,1718694654899,-558.52343519,0.00021917,2]
[329816613,1718694654908,-2731.01,0.00021917,2]
[329816614,1718694654918,-500.0,0.00021917,2]
[329816615,1718694654928,-500.0,0.00021917,2]
[329816616,1718694654938,-151.0,0.00021917,2]
[329816617,1718694654948,-151.0,0.00021917,2]
[329816618,1718694654960,-3071.14,0.00021917,2]
[329816619,1718694654970,-3229.27,0.00021917,2]
[329816620,1718694654979,-500.0,0.00021917,2]
[329816621,1718694654989,-500.0,0.00021917,2]
[329816622,1718694654998,-1294.04,0.00021917,2]
[329816623,1718694655008,-1368.2,0.00021917,2]
[329816624,1718694655018,-500.0,0.00021917,2]
[329816625,1718694655027,-500.0,0.00021917,2]
[329816626,1718694655036,-4898.96,0.00021917,2]
[329816627,1718694655046,-2275.52,0.00021917,2]
[329816628,1718694655056,-500.0,0.00021917,2]
[329816629,1718694655065,-2369.12,0.00021917,2]
[329816630,1718694655075,-504.26346221,0.00021917,2]
[329816631,1718694655084,-762.46,0.00021917,2]
[329816632,1718694655093,-500.0,0.00021917,2]
[329816633,1718694655102,-500.0,0.00021917,2]
[329816634,1718694655112,-500.0,0.00021917,2]
[329816635,1718694655121,-500.0,0.00021917,2]
[329816636,1718694655131,-1384.53,0.00021917,2]
[329816637,1718694655140,-2423.77,0.00021917,2]
[329816638,1718694655150,-500.0,0.00021917,2]
[329816639,1718694655160,-500.0,0.00021917,2]
[329816640,1718694655169,-4529.61,0.00021917,2]
[329816641,1718694655179,-411.43427139,0.00021917,2]
[329816642,1718694655188,-500.0,0.00021917,2]
[329816643,1718694655200,-7355.56,0.00021917,2]
[329816644,1718694655212,-1055.12,0.00021917,2]
[329816645,1718694655221,-4228.03,0.00021917,2]
[329816646,1718694655231,-500.0,0.00021917,2]
[329816647,1718694655240,-500.0,0.00021917,2]
[329816648,1718694655250,-500.0,0.00021917,2]
[329816649,1718694655259,-537.95,0.00021917,2]
[329816650,1718694655269,-2322.87,0.00021917,2]
[329816651,1718694655279,-500.0,0.00021917,2]
[329816652,1718694655288,-831.21,0.00021917,2]
[329816653,1718694655298,-500.0,0.00021917,2]
[329816654,1718694655308,-766.26,0.00021917,2]
[329816655,1718694655319,-500.0,0.00021917,2]
[329816656,1718694655332,-1585.29,0.00021917,2]
[329816657,1718694655343,-500.0,0.00021917,2]
[329816658,1718694655353,-514.17598772,0.00021917,2]
[329816659,1718694655364,-2000.0,0.00021917,2]
[329816660,1718694655374,-500.0,0.00021917,2]
[329816661,1718694655384,-3573.47,0.00021917,2]
[329816662,1718694655394,-500.0,0.00021917,2]
[329816663,1718694655405,-500.0,0.00021917,2]
[329816664,1718694655415,-9557.32,0.00021917,2]
[329816665,1718694655425,-2467.83,0.00021917,2]
[329816666,1718694655435,-500.0,0.00021917,2]
[329816667,1718694655445,-500.0,0.00021917,2]
[329816668,1718694655456,-500.0,0.00021917,2]
[329816669,1718694655466,-500.0,0.00021917,2]
[329816670,1718694655476,-4177.45,0.00021917,2]
[329816671,1718694655486,-500.0,0.00021917,2]
[329816672,1718694655496,-507.31755879,0.00021917,2]
[329816673,1718694655505,-894.87,0.00021917,2]
[329816674,1718694655515,-1164.25,0.00021917,2]
[329816675,1718694655524,-6756.0257405,0.00021917,2]
[329816676,1718694655535,-500.0,0.00021917,2]
[329816677,1718694655545,-686.04,0.00021917,2]
[329816678,1718694655555,-500.0,0.00021917,2]
[329816679,1718694655564,-2723.68,0.00021917,2]
[329816680,1718694655574,-500.0,0.00021917,2]
[329816681,1718694655585,-837.71,0.00021917,2]
[329816682,1718694655595,-500.0,0.00021917,2]
[329816683,1718694655605,-1116.64,0.00021917,2]
[329816684,1718694655615,-3010.6,0.00021917,2]
[329816685,1718694655625,-500.0,0.00021917,2]
[329816686,1718694655636,-2254.5,0.00021917,2]
[329816687,1718694655645,-2294.24,0.00021917,2]
[329816688,1718694655656,-5521.6,0.00021917,2]
[329816689,1718694655665,-500.0,0.00021917,2]
[329816690,1718694655676,-2421.22,0.00021917,2]
[329816691,1718694655686,-629.01,0.00021917,2]
[329816692,1718694655696,-500.0,0.00021917,2]
[329816693,1718694655708,-681.31,0.00021917,2]
[329816694,1718694655717,-500.0,0.00021917,2]
[329816695,1718694655727,-2088.08,0.00021917,2]
[329816696,1718694655737,-500.0,0.00021917,2]
[329816697,1718694655747,-1172.81,0.00021917,2]
[329816698,1718694655757,-151.0,0.00021917,2]
[329816699,1718694655766,-151.0,0.00021917,2]
[329816700,1718694655776,-500.0,0.00021917,2]
[329816701,1718694655786,-151.0,0.00021917,2]
[329816702,1718694655796,-1208.88,0.00021917,2]
[329816703,1718694655806,-1382.33,0.00021917,2]
[329816704,1718694655816,-817.47,0.00021917,2]
[329816705,1718694655826,-1556.78,0.00021917,2]
[329816706,1718694655836,-299.69870945,0.00021917,2]
[329816707,1718694655846,-6373.88,0.00021917,2]
[329816708,1718694655856,-500.0,0.00021917,2]
[329816709,1718694655866,-500.0,0.00021917,2]
[329816710,1718694655876,-4272.96,0.00021917,2]
[329816711,1718694655886,-705.55,0.00021917,2]
[329816712,1718694655896,-562.84,0.00021917,2]
[329816713,1718694655907,-158.86539234,0.00021917,2]
[329816714,1718694655916,-3896.65,0.00021917,2]
[329816715,1718694655926,-500.0,0.00021917,2]
[329816716,1718694655936,-500.0,0.00021917,2]
[329816717,1718694655947,-1414.99,0.00021917,2]
[329816718,1718694655958,-151.0,0.00021917,2]
[329816719,1718694655968,-151.0,0.00021917,2]
[329816720,1718694655977,-2056.34,0.00021917,2]
[329816721,1718694655987,-500.0,0.00021917,2]
[329816722,1718694655997,-151.0,0.00021917,2]
[329816723,1718694656008,-605.49,0.00021917,2]
[329816724,1718694656017,-500.0,0.00021917,2]
[329816725,1718694656027,-1011.83,0.00021917,2]
[329816726,1718694656036,-500.0,0.00021917,2]
[329816727,1718694656046,-3474.27,0.00021917,2]
[329816728,1718694656055,-1867.6,0.00021917,2]
[329816729,1718694656065,-500.0,0.00021917,2]
[329816730,1718694656075,-500.0,0.00021917,2]
[329816731,1718694656085,-2974.77,0.00021917,2]
[329816732,1718694656095,-2596.09,0.00021917,2]
[329816733,1718694656104,-500.0,0.00021917,2]
[329816734,1718694656284,-500.0,0.00021917,2]
[329816735,1718694656294,-4701.04,0.00021917,2]
[329816736,1718694656304,-544.7,0.00021918,2]
[329816737,1718694656314,-250.0,0.00021918,2]
[329816738,1718694656329,-663.73,0.00021918,2]
[329816739,1718694656339,-300.0,0.00021918,2]
[329816740,1718694656348,-300.0,0.00021918,2]
[329816741,1718694656358,-300.0,0.00021918,2]
[329816742,1718694656370,-300.0,0.00021918,2]
[329816743,1718694656379,-202.067689,0.00021918,2]
[329816745,1718694656389,-993.081956,0.00021918,2]
[329816746,1718694656401,-2604.576164,0.00021918,2]
[329816747,1718694656411,-4094.248916,0.00021918,2]
[329816748,1718694656420,-7208.593609,0.00021918,2]
[329816749,1718694656429,-154.957479,0.00021918,2]
[329816750,1718694656439,-205.333799,0.00021918,2]
[329816751,1718694656449,-446.442275,0.00021918,2]
[329816752,1718694656461,-401.478077,0.00021918,2]
[329816753,1718694656471,-6463.618133,0.00021918,2]
[329816754,1718694656480,-294.244002,0.00021918,2]
[329816755,1718694656490,-200.0,0.0002192,2]
[329816756,1718694656499,-1453.876118,0.00021921,7]
[329816757,1718694656509,-1453.876118,0.00021921,7]
[329816758,1718694656518,-406.52059693,0.0002195,2]
[329816759,1718694656528,-19138.54680309,0.00021966,2]
[329816760,1718694656538,-562.9386485,0.0002197,2]
[329816761,1718694656548,-300.0,0.00021983,2]
[329816762,1718694656559,-300.0,0.00021983,2]
[329816763,1718694656569,-151.0,0.00021984,7]
[329816764,1718694656579,-2243.81837952,0.00022,2]
[329816765,1718694656589,-1000.0,0.00022,3]
[329816766,1718694656598,-1000.0,0.00022,3]
[329816767,1718694656608,-788.26186134,0.00022,2]
[329816768,1718694656618,-1714.81,0.00022,2]
[329816769,1718694656628,-419.05063076,0.00022,2]
[329816770,1718694656637,-419.05063076,0.00022,2]
[329816771,1718694656647,-419.05063076,0.00022,2]
[329816772,1718694656657,-1548.54464471,0.00022,2]
[329816773,1718694656667,-1548.54464471,0.00022,2]
[329816774,1718694656677,-1548.54464471,0.00022,2]
[329816775,1718694656687,-1548.54464471,0.00022,2]
[329816776,1718694656697,-1548.54464471,0.00022,2]
[329816777,1718694656710,-1548.54464471,0.00022,2]
[329816778,1718694656721,-1548.54464471,0.00022,2]
[329816779,1718694656731,-1548.54464471,0.00022,2]
[329816780,1718694656740,-1548.54464471,0.00022,2]
[329816781,1718694656761,-1548.54464471,0.00022,2]
[329816782,1718694656771,-1548.54464471,0.00022,2]
[329816783,1718694656781,-1548.54464471,0.00022,2]
[329816784,1718694656792,-1548.54464471,0.00022,2]
[329816785,1718694656802,-1548.54464471,0.00022,2]
[329816786,1718694656812,-1548.54464471,0.00022,2]
[329816787,1718694656823,-1548.54464471,0.00022,2]
[329816788,1718694656833,-1548.54464471,0.00022,2]
[329816789,1718694656844,-1548.54464471,0.00022,2]
[329816790,1718694656855,-1548.54464471,0.00022,2]
[329816791,1718694656865,-1548.54464471,0.00022,2]
[329816792,1718694656876,-1548.54464471,0.00022,2]
[329816793,1718694656886,-1548.54464471,0.00022,2]
[329816794,1718694656896,-1548.54464471,0.00022,2]
[329816795,1718694656906,-1548.54464471,0.00022,2]
[329816796,1718694656916,-1548.54464471,0.00022,2]
[329816797,1718694656926,-1548.54464471,0.00022,2]
[329816798,1718694656936,-1548.54464471,0.00022,2]
[329816799,1718694656947,-1548.54464471,0.00022,2]
[329816800,1718694656961,-1548.54464471,0.00022,2]
[329816801,1718694656971,-1548.54464471,0.00022,2]
[329816802,1718694656980,-1548.54464471,0.00022,2]
[329816803,1718694656989,-1548.54464471,0.00022,2]
[329816804,1718694656999,-1548.54464471,0.00022,2]
[329816805,1718694657008,-1548.54464471,0.00022,2]
[329816806,1718694657018,-1548.54464471,0.00022,2]
[329816807,1718694657028,-1548.54464471,0.00022,2]
[329816808,1718694657038,-1548.54464471,0.00022,2]
[329816809,1718694657048,-1548.54464471,0.00022,2]
[329816810,1718694657058,-1548.54464471,0.00022,2]
[329816811,1718694657068,-1548.54464471,0.00022,2]
[329816812,1718694657078,-180.609477,0.00022008,2]
[329816813,1718694657089,-715.03176545,0.00022016,3]
[329816814,1718694657098,-715.37566871,0.00022022,2]
[329816815,1718694657108,-221.0,0.0002204,2]
[329816816,1718694657119,-860.41680375,0.00022055,5]
[329816817,1718694657129,-1595.9772136,0.00022055,2]
[329816818,1718694657139,-152.0,0.00022072,3]
[329816819,1718694657150,-704.46,0.00022082,2]
[329816820,1718694657160,-16291.16337513,0.00022091,2]
[329816821,1718694657170,-150.0,0.000221,3]
[329816822,1718694657180,-19138.54680309,0.00022115,2]
[329816823,1718694657190,-151.0,0.00022119,2]
[329816824,1718694657200,-1652.79828114,0.00022136,2]
[329816825,1718694657212,-200.0,0.00022136,2]
[329816826,1718694657223,-860.41680375,0.00022137,5]
[329816827,1718694657233,-300.0,0.00022174,2]
[329816828,1718694657243,-300.0,0.00022174,2]
[329816829,1718694657253,-300.0,0.00022174,2]
[329816830,1718694657263,-168379.25458257,0.00022175,2]
[329816831,1718694657273,-151.0,0.00022175,7]
[329816832,1718694657284,-1453.876118,0.00022175,7]
[329816833,1718694657294,-1453.876118,0.00022175,7]
[329816834,1718694657304,-151.0,0.00022175,7]
[329816835,1718694657315,-993.081956,0.00022188,2]
[329816836,1718694657330,-2604.576164,0.00022188,2]
[329816837,1718694657341,-4094.248916,0.00022188,2]
[329816838,1718694657351,-7208.593609,0.00022188,2]
[329816839,1718694657361,-154.957479,0.00022188,2]
[329816840,1718694657372,-205.333799,0.00022188,2]
[329816841,1718694657382,-446.442275,0.00022188,2]
[329816842,1718694657398,-401.478077,0.00022188,2]
[329816843,1718694657411,-6463.618133,0.00022188,2]
[329816844,1718694657423,-294.244002,0.00022188,2]
[329816845,1718694657433,-795.53706699,0.0002219,2]
[329816846,1718694657443,-300.0,0.0002219,2]
[329816847,1718694657454,-300.0,0.0002219,2]
[329816848,1718694657467,-1453.876118,0.0002219,7]
[329816849,1718694657477,-1453.876118,0.0002219,7]
[329816850,1718694657488,-300.0,0.0002219,2]
[329816851,1718694657499,-300.0,0.0002219,2]
[329816852,1718694657510,-1316005.25165149,0.00022191,7]
[329816853,1718694657521,-500.0,0.00022191,3]
[329816854,1718694657531,-666.39,0.00022191,3]
[329816855,1718694657542,-739.52,0.00022191,3]
[329816856,1718694657553,-631.6,0.00022191,3]
[329816857,1718694657562,-500.0,0.00022191,2]
[329816858,1718694657573,-500.0,0.00022191,3]
[329816859,1718694657582,-500.0,0.00022191,3]
[329816860,1718694657592,-500.0,0.00022191,3]
[329816861,1718694657602,-500.0,0.00022191,3]
[329816862,1718694657613,-500.0,0.00022191,3]
[329816863,1718694657624,-781.99,0.00022191,3]
[329816864,1718694657635,-500.0,0.00022191,3]
[329816865,1718694657645,-500.0,0.00022191,3]
[329816866,1718694657656,-500.0,0.00022191,3]
[329816867,1718694657667,-500.0,0.00022191,3]
[329816868,1718694657678,-500.0,0.00022191,3]
[329816869,1718694657689,-500.0,0.00022191,3]